[Event "4th Batumi Cup 2018"]
[Site "Batumi"]
[Date "2018.07.03"]
[Round "1"]
[White "Rahul Srivatshav P"]
[Black "Duzhakov, Ilya"]
[Result "0-1"]
[ECO "B51"]
[WhiteElo "2397"]
[BlackElo "2448"]
[Annotator "NA"]
[PlyCount "142"]
[EventDate "2018.07.03"]
[EventType "swiss"]
[EventCountry "GEO"]
[SourceTitle "playchess.com"]
[Source "ChessBase"]
[SourceQuality "1"]
[TimeControl "40/5400+30:1800+30"]

1. e4 {[%emt 0:00:00]} c5 {[%emt 0:00:29]} 2. Nf3 {[%emt 0:00:19]} d6 {[%emt 0:00:24]} 3. Bb5+ {[%emt 0:00:36]} Nd7 {[%emt 0:00:31]} 4. d4 {[%emt 0:00:33]} cxd4 {[%emt 0:00:36]} 5. Qxd4 {[%emt 0:00:18]} a6 {[%emt 0:00:32]} 6. Bxd7+ {[%emt 0:00:44]} Bxd7 {[%emt 0:00:08]} 7. c4 {[%emt 0:00:56]} e5 {[%emt 0:01:42]} 8. Qd3 {[%emt 0:00:28]} b5 {[%emt 0:00:28]} 9. Nc3 {[%emt 0:01:01]} bxc4 {[%emt 0:05:52]} 10. Qxc4 {[%emt 0:00:17]} Nf6 {[%emt 0:00:07]} 11. Ng5 {[%emt 0:07:42]} Qe7 {[%emt 0:01:02]} 12. O-O {[%emt 0:00:48]} h6 {[%emt 0:02:16]} 13. Nf3 {[%emt 0:01:24]} Qe6 {[%emt 0:01:05]} 14. Qd3 {[%emt 0:03:17]} Be7 {[%emt 0:02:22]} 15. h3 {[%emt 0:06:55]} O-O {[%emt 0:01:49]} 16. Rd1 {[%emt 0:03:50]} Rfc8 {[%emt 0:06:19]} 17. Be3 {[%emt 0:04:45]} Qc4 {[%emt 0:02:02]} 18. Qxc4 {[%emt 0:09:14]} Rxc4 {[%emt 0:00:21]} 19. Nd2 {[%emt 0:00:40]} Rc7 {[%emt 0:03:20]} 20. Rac1 {[%emt 0:11:35]} Rac8 {[%emt 0:01:14]} 21. Nf1 {[%emt 0:02:58]} Be6 {[%emt 0:09:16]} 22. f3 {[%emt 0:02:52]} Rc6 {[%emt 0:04:40]} 23. Ng3 {[%emt 0:03:22]} Bd8 {[%emt 0:03:47]} 24. Nge2 {[%emt 0:03:46]} Ba5 {[%emt 0:05:14]} 25. Kf2 {[%emt 0:04:29]} Kf8 {[%emt 0:01:10]} 26. Rd3 {[%emt 0:08:10]} Bc4 {[%emt 0:05:44]} 27. Rdd1 {[%emt 0:00:27]} Ke7 {[%emt 0:12:20]} 28. Ng3 {[%emt 0:06:15]} Be6 {[%emt 0:00:49]} 29. Nge2 {[%emt 0:00:25]} Rb8 {[%emt 0:01:52]} 30. b3 {[%emt 0:02:57]} Rbc8 {[%emt 0:00:50]} 31. Rd3 {[%emt 0:00:59]} Bb4 {[%emt 0:02:12]} 32. Bd2 {[%emt 0:07:12]} Ba3 {[%emt 0:07:26]} 33. Rd1 {[%emt 0:00:29]} Nd7 {[%emt 0:00:19]} 34. Be3 {[%emt 0:04:06]} Nc5 {[%emt 0:02:14]} 35. Nd5+ {[%emt 0:00:35]} Bxd5 {[%emt 0:04:20]} 36. Rxd5 {[%emt 0:00:02]} h5 {[%emt 0:00:40]} 37. Ng3 {[%emt 0:02:27]} g6 {[%emt 0:00:08]} 38. Ne2 {[%emt 0:00:37]} Bb4 {[%emt 0:00:50]} 39. Bd2 {[%emt 0:00:51]} a5 {[%emt 0:00:47]} 40. h4 {[%emt 0:00:00]} Ne6 {[%emt 0:00:00]} 41. Bxb4 {[%emt 0:15:36]} axb4 {[%emt 0:02:57]} 42. R1d2 {[%emt 0:02:09]} Nc5 {[%emt 0:05:32]} 43. Ke3 {[%emt 0:00:39]} f5 {[%emt 0:01:40]} 44. g3 {[%emt 0:02:12]} Nd7 {[%emt 0:10:40]} 45. Rb5 {[%emt 0:02:48]} Rb6 {[%emt 0:01:32]} 46. Rdd5 {[%emt 0:02:45]} Rcc6 {[%emt 0:03:27]} 47. Rxb6 {[%emt 0:00:57]} Rxb6 {[%emt 0:00:08]} 48. Nc1 {[%emt 0:04:14]} Rc6 {[%emt 0:02:19]} 49. Nd3 {[%emt 0:00:32]} fxe4 {[%emt 0:00:57]} 50. fxe4 {[%emt 0:00:36]} Rc3 {[%emt 0:00:07]} 51. Kd2 {[%emt 0:02:11]} Nf6 {[%emt 0:00:13]} 52. Nxb4 {[%emt 0:00:46]} Nxe4+ {[%emt 0:01:39]} 53. Kd1 {[%emt 0:00:39]} Rxg3 {[%emt 0:02:23]} 54. Ra5 {[%emt 0:00:10]} g5 {[%emt 0:03:02]} 55. hxg5 {[%emt 0:00:50]} h4 {[%emt 0:00:01]} 56. Ra7+ {[%emt 0:00:39]} Ke6 {[%emt 0:00:10]} 57. Rh7 {[%emt 0:00:40]} h3 {[%emt 0:00:03]} 58. g6 {[%emt 0:01:08]} Rxg6 {[%emt 0:00:04]} 59. Nd3 {[%emt 0:00:10]} Rg3 {[%emt 0:00:40]} 60. Ke2 {[%emt 0:00:36]} Rg2+ {[%emt 0:10:57]} 61. Ke3 {[%emt 0:00:01]} Ng5 {[%emt 0:00:10]} 62. Rh6+ {[%emt 0:00:50]} Kf5 {[%emt 0:00:06]} 63. Nf2 {[%emt 0:01:26]} h2 {[%emt 0:01:07]} 64. b4 {[%emt 0:00:31]} d5 {[%emt 0:00:25]} 65. b5 {[%emt 0:00:31]} d4+ {[%emt 0:00:24]} 66. Ke2 {[%emt 0:00:16]} Ne4 {[%emt 0:00:27]} 67. b6 {[%emt 0:00:40]} Rxf2+ {[%emt 0:00:27]} 68. Kd3 {[%emt 0:00:02]} Rxa2 {[%emt 0:01:02]} 69. Kc4 {[%emt 0:00:47]} Rb2 {[%emt 0:00:29]} 70. Kd5 {[%emt 0:00:47]} Ng3 {[%emt 0:01:24]} 71. Rh8 {[%emt 0:00:30]} h1=Q+ {[%emt 0:00:08]} 0-1

[Event "4th Batumi Cup 2018"]
[Site "Batumi"]
[Date "2018.07.03"]
[Round "1"]
[White "Oboladze, Luka"]
[Black "Khalaji, Hanieh"]
[Result "1-0"]
[ECO "D10"]
[WhiteElo "2378"]
[BlackElo "2146"]
[Annotator "NA"]
[PlyCount "69"]
[EventDate "2018.07.03"]
[EventType "swiss"]
[EventCountry "GEO"]
[SourceTitle "playchess.com"]
[Source "ChessBase"]
[SourceQuality "1"]
[TimeControl "40/5400+30:1800+30"]

1. d4 {[%emt 0:00:00]} d5 {[%emt 0:00:00]} 2. c4 {[%emt 0:00:00]} c6 {[%emt 0:00:00]} 3. cxd5 {[%emt 0:00:07]} cxd5 {[%emt 0:00:00]} 4. Bf4 {[%emt 0:00:03]} Nc6 {[%emt 0:01:09]} 5. e3 {[%emt 0:00:20]} Bf5 {[%emt 0:02:34]} 6. Nc3 {[%emt 0:01:06]} e6 {[%emt 0:00:44]} 7. a3 {[%emt 0:06:32]} Bd6 {[%emt 0:01:51]} 8. Nge2 {[%emt 0:01:07]} Nf6 {[%emt 0:03:06]} 9. Bxd6 {[%emt 0:01:44]} Qxd6 {[%emt 0:00:06]} 10. Nf4 {[%emt 0:00:05]} O-O {[%emt 0:01:29]} 11. Be2 {[%emt 0:00:11]} Nxd4 {[%emt 0:17:24]} 12. Qxd4 {[%emt 0:03:11]} e5 {[%emt 0:00:07]} 13. Nb5 {[%emt 0:03:37]} Qb8 {[%emt 0:00:11]} 14. Qb4 {[%emt 0:03:44]} a5 {[%emt 0:08:56]} 15. Qd6 {[%emt 0:02:53]} exf4 {[%emt 0:00:14]} 16. Qxb8 {[%emt 0:01:35]} Raxb8 {[%emt 0:00:31]} 17. Nd4 {[%emt 0:00:24]} Bd7 {[%emt 0:01:54]} 18. exf4 {[%emt 0:00:51]} Rfe8 {[%emt 0:02:45]} 19. f3 {[%emt 0:03:02]} b5 {[%emt 0:03:30]} 20. b4 {[%emt 0:00:16]} a4 {[%emt 0:18:31]} 21. Kd2 {[%emt 0:00:44]} Rb6 {[%emt 0:02:28]} 22. Rac1 {[%emt 0:01:29]} h5 {[%emt 0:02:50]} 23. Rc5 {[%emt 0:01:39]} Reb8 {[%emt 0:00:50]} 24. g3 {[%emt 0:02:10]} Kf8 {[%emt 0:02:23]} 25. Re1 {[%emt 0:00:56]} R8b7 {[%emt 0:04:05]} 26. Bd3 {[%emt 0:01:51]} g6 {[%emt 0:00:27]} 27. Re5 {[%emt 0:00:51]} Rb8 {[%emt 0:02:46]} 28. h4 {[%emt 0:01:33]} R8b7 {[%emt 0:04:08]} 29. f5 {[%emt 0:03:12]} gxf5 {[%emt 0:03:58]} 30. Bxf5 {[%emt 0:00:44]} Bxf5 {[%emt 0:02:54]} 31. Rxf5 {[%emt 0:00:13]} Ke7 {[%emt 0:01:18]} 32. Nc6+ {[%emt 0:04:49]} Ke6 {[%emt 0:00:31]} 33. Rf4 {[%emt 0:00:41]} Rd7 {[%emt 0:09:49]} 34. Nd4+ {[%emt 0:01:07]} Ke5 {[%emt 0:00:38]} 35. Kd3 {[%emt 0:01:59]} 1-0

[Event "4th Batumi Cup 2018"]
[Site "Batumi"]
[Date "2018.07.03"]
[Round "1"]
[White "Martynov, Roman"]
[Black "Stepanyan, Eva"]
[Result "1/2-1/2"]
[ECO "D30"]
[WhiteElo "2366"]
[BlackElo "2096"]
[Annotator "NA"]
[PlyCount "114"]
[EventDate "2018.07.03"]
[EventType "swiss"]
[EventCountry "GEO"]
[SourceTitle "playchess.com"]
[Source "ChessBase"]
[SourceQuality "1"]
[TimeControl "40/5400+30:1800+30"]

1. d4 {[%emt 0:08:19]} Nf6 {[%emt 0:00:00]} 2. c4 {[%emt 0:02:08]} e6 {[%emt 0:00:00]} 3. g3 {[%emt 0:00:57]} d5 {[%emt 0:01:43]} 4. Nf3 {[%emt 0:02:29]} Bb4+ {[%emt 0:02:57]} 5. Bd2 {[%emt 0:00:56]} Bd6 {[%emt 0:00:32]} 6. Bg2 {[%emt 0:01:15]} c6 {[%emt 0:01:41]} 7. Qc2 {[%emt 0:11:52]} O-O {[%emt 0:01:06]} 8. O-O {[%emt 0:00:08]} Ne4 {[%emt 0:07:23]} 9. Rd1 {[%emt 0:11:32]} Nd7 {[%emt 0:02:56]} 10. Be1 {[%emt 0:05:55]} f5 {[%emt 0:06:49]} 11. Nfd2 {[%emt 0:03:07]} Qf6 {[%emt 0:02:43]} 12. Nf1 {[%emt 0:08:06]} Qh6 {[%emt 0:07:37]} 13. e3 {[%emt 0:04:23]} Ndf6 {[%emt 0:03:28]} 14. Nc3 {[%emt 0:04:17]} Nxc3 {[%emt 0:06:49]} 15. bxc3 {[%emt 0:08:25]} Bd7 {[%emt 0:04:11]} 16. c5 {[%emt 0:07:14]} Bc7 {[%emt 0:00:41]} 17. Rab1 {[%emt 0:00:01]} b5 {[%emt 0:10:54]} 18. cxb6 {[%emt 0:01:47]} axb6 {[%emt 0:00:12]} 19. c4 {[%emt 0:00:02]} Ne4 {[%emt 0:01:03]} 20. Nd2 {[%emt 0:00:59]} Rfc8 {[%emt 0:02:51]} 21. cxd5 {[%emt 0:08:47]} cxd5 {[%emt 0:01:22]} 22. Qb2 {[%emt 0:01:07]} b5 {[%emt 0:04:44]} 23. Nb3 {[%emt 0:01:28]} Bb6 {[%emt 0:01:07]} 24. Rdc1 {[%emt 0:00:57]} Rxc1 {[%emt 0:02:45]} 25. Rxc1 {[%emt 0:00:10]} Nd6 {[%emt 0:00:15]} 26. Bb4 {[%emt 0:01:48]} Nc4 {[%emt 0:00:16]} 27. Qe2 {[%emt 0:00:01]} Qf6 {[%emt 0:02:18]} 28. Nc5 {[%emt 0:00:39]} Qd8 {[%emt 0:01:40]} 29. Nd3 {[%emt 0:01:26]} Ra4 {[%emt 0:01:17]} 30. Rc2 {[%emt 0:00:08]} Qa8 {[%emt 0:01:04]} 31. h3 {[%emt 0:00:03]} Be8 {[%emt 0:00:50]} 32. Bc5 {[%emt 0:01:06]} Qa7 {[%emt 0:01:58]} 33. Kh2 {[%emt 0:01:05]} Bg6 {[%emt 0:00:37]} 34. Bxb6 {[%emt 0:02:46]} Qxb6 {[%emt 0:00:08]} 35. Nf4 {[%emt 0:00:17]} Bf7 {[%emt 0:00:25]} 36. h4 {[%emt 0:01:00]} Qd6 {[%emt 0:04:07]} 37. Bf3 {[%emt 0:00:23]} Qb4 {[%emt 0:02:44]} 38. Kg2 {[%emt 0:00:20]} Ra3 {[%emt 0:00:58]} 39. g4 {[%emt 0:01:05]} fxg4 {[%emt 0:02:15]} 40. Bxg4 {[%emt 0:00:00]} Qe7 {[%emt 0:00:00]} 41. Qf3 {[%emt 0:20:00]} Ra6 {[%emt 0:14:49]} 42. h5 {[%emt 0:03:11]} Qh4 {[%emt 0:02:17]} 43. Qg3 {[%emt 0:03:52]} Qxg3+ {[%emt 0:00:58]} 44. Kxg3 {[%emt 0:00:01]} Kf8 {[%emt 0:00:22]} 45. Be2 {[%emt 0:00:14]} Ke7 {[%emt 0:00:44]} 46. Bd3 {[%emt 0:00:26]} h6 {[%emt 0:00:22]} 47. Bg6 {[%emt 0:04:37]} Bxg6 {[%emt 0:00:30]} 48. Nxg6+ {[%emt 0:00:01]} Kf6 {[%emt 0:01:04]} 49. Kf4 {[%emt 0:00:47]} Ra4 {[%emt 0:01:03]} 50. f3 {[%emt 0:00:59]} Ra3 {[%emt 0:02:29]} 51. Ne5 {[%emt 0:01:27]} Nxe5 {[%emt 0:02:29]} 52. dxe5+ {[%emt 0:00:04]} Kf7 {[%emt 0:00:05]} 53. Rc7+ {[%emt 0:00:35]} Kf8 {[%emt 0:00:07]} 54. Rc8+ {[%emt 0:00:21]} Kf7 {[%emt 0:00:05]} 55. Rc7+ {[%emt 0:00:08]} Kf8 {[%emt 0:00:04]} 56. Rc8+ {[%emt 0:00:40]} Kf7 {[%emt 0:00:08]} 57. Rc7+ {[%emt 0:00:19]} Kf8 {[%emt 0:24:28]} 1/2-1/2

[Event "4th Batumi Cup 2018"]
[Site "Batumi"]
[Date "2018.07.03"]
[Round "1"]
[White "Lomsadze, Davit"]
[Black "Jumabayev, Rinat"]
[Result "0-1"]
[ECO "A09"]
[WhiteElo "2348"]
[BlackElo "2594"]
[Annotator "ChessBase"]
[PlyCount "88"]
[EventDate "2018.07.03"]
[EventType "swiss"]
[EventCountry "GEO"]
[SourceTitle "playchess.com"]
[Source "ChessBase"]
[SourceQuality "1"]
[TimeControl "40/5400+30:1800+30"]

1. Nf3 {[%emt 0:00:00]} Nf6 {[%emt 0:00:00]} 2. g3 {[%emt 0:00:00]} c5 {[%emt 0:00:05]} 3. Bg2 {[%emt 0:00:00]} d5 {[%emt 0:00:06]} 4. O-O {[%emt 0:00:00]} e6 {[%emt 0:00:07]} 5. c4 {[%emt 0:02:28]} d4 {[%emt 0:00:04]} 6. d3 {[%emt 0:00:20]} Nc6 {[%emt 0:00:06]} 7. e4 {[%emt 0:03:15]} e5 {[%emt 0:03:46]} 8. Ne1 {[%emt 0:04:05]} Be7 {[%emt 0:03:28]} 9. f4 {[%emt 0:03:53]} exf4 {[%emt 0:00:28]} 10. gxf4 {[%emt 0:00:10]} g6 {[%emt 0:01:17]} 11. Nd2 {[%emt 1:21:19]} Bg4 {[%emt 0:05:08]} 12. Ndf3 {[%emt 0:00:00]} Qc7 {[%emt 0:00:47]} 13. h3 {[%emt 0:00:00]} Bd7 {[%emt 0:00:06]} 14. Nh2 {[%emt 0:00:00]} Nh5 {[%emt 0:01:06]} 15. Nc2 {[%emt 0:00:00]} O-O {[%emt 0:23:20]} 16. Bd2 {[%emt 0:00:00]} Kh8 {[%emt 0:00:27]} 17. Rb1 {[%emt 0:00:00]} a5 {[%emt 0:01:41]} 18. a4 {[%emt 0:00:00]} f5 {[%emt 0:00:48]} 19. e5 {[%emt 0:00:00]} Nd8 {[%emt 0:00:06]} 20. Na3 {[%emt 0:00:00]} Bc6 {[%emt 0:00:14]} 21. Nb5 {[%emt 0:00:00]} Qd7 {[%emt 0:00:06]} 22. Bd5 {[%emt 0:00:00]} Ng7 {[%emt 0:17:04]} 23. Qf3 {[%emt 0:00:00]} Nde6 {[%emt 0:00:06]} 24. Rbe1 {[%emt 0:00:00]} Nh5 {[%emt 0:01:42]} 25. Bxe6 {[%emt 0:00:00]} Qxe6 {[%emt 0:00:05]} 26. Qf2 {[%emt 0:00:00]} g5 {[%emt 0:07:28]} 27. fxg5 {[%emt 0:00:00]} f4 {[%emt 0:00:11]} 28. h4 {[%emt 0:00:00]} Rg8 {[%emt 0:21:57]} 29. Nf3 {[%emt 0:00:00]} Ng3 {[%emt 0:02:31]} 30. Nc7 {[%emt 0:00:00]} Qg4 {[%emt 0:01:03]} 31. Qg2 {[%emt 0:00:00]} Rad8 {[%emt 0:00:28]} 32. Nd5 {[%emt 0:00:00]} Rxd5 {[%emt 0:01:25]} 33. cxd5 {[%emt 0:00:00]} Bxd5 {[%emt 0:00:04]} 34. Rf2 {[%emt 0:00:00]} h6 {[%emt 0:04:46]} 35. e6 {[%emt 0:00:00]} hxg5 {[%emt 0:00:19]} 36. Ne5 {[%emt 0:02:06]} Qxe6 {[%emt 0:00:17]} 37. Ng6+ {[%emt 0:00:49]} Qxg6 {[%emt 0:00:09]} 38. Qxd5 {[%emt 0:00:04]} gxh4 {[%emt 0:00:16]} 39. Rg2 {[%emt 0:01:29]} Bg5 {[%emt 0:01:16]} 40. Qe5+ {[%emt 0:00:00]} Bf6 {[%emt 0:00:00]} 41. Qxf4 {[%emt 0:05:10]} h3 {[%emt 0:02:13]} 42. Re6 {[%emt 0:05:43]} hxg2 {[%emt 0:01:11]} 43. Be1 {[%emt 0:02:37]} Nh5 {[%emt 0:00:28]} 44. Qf3 {[%emt 0:01:49]} Re8 {[%emt 0:03:21]} 0-1

[Event "4th Batumi Cup 2018"]
[Site "Batumi"]
[Date "2018.07.03"]
[Round "1"]
[White "Sattarov, Bobir"]
[Black "Pantsulaia, Levan"]
[Result "0-1"]
[ECO "B40"]
[WhiteElo "2328"]
[BlackElo "2575"]
[Annotator "ChessBase"]
[PlyCount "33"]
[EventDate "2018.07.03"]
[EventType "swiss"]
[EventCountry "GEO"]
[SourceTitle "playchess.com"]
[Source "ChessBase"]
[SourceQuality "1"]
[TimeControl "40/5400+30:1800+30"]

1. e4 {[%emt 0:00:21]} c5 {[%emt 0:00:00]} 2. Nf3 {[%emt 0:00:29]} a6 {[%emt 0:01:15]} 3. c4 {[%emt 0:01:27]} e6 {[%emt 0:00:22]} 4. Nc3 {[%emt 0:00:24]} Qc7 {[%emt 0:00:22]} 5. Be2 {[%emt 0:01:05]} Nc6 {[%emt 0:00:52]} 6. O-O {[%emt 0:10:49]} Nd4 {[%emt 0:00:37]} 7. d3 {[%emt 0:00:15]} Ne7 {[%emt 0:00:17] Nxd4cxd4 [%clk 1:30:09]} 8. Nb1 {[%emt 0:00:00] Nc6 [%clk 1:30:15] f4 [%clk 1:18:42] Be7 [%clk 1:29:21] Nd2 [%clk 1:18:39] O-O [%clk 1:29:42]} Nxf3+ {[%emt 0:15:21] b5 [%clk 1:29:26]} 9. Kh1 {[%emt 0:14:25]} Rb8 {[%emt 0:00:00]} 10. b3 {[%emt 0:03:20] Bb7 [%clk 1:13:20] Bd2 [%clk 0:56:35]} f5 {[%emt 0:06:43] Rc1 [%clk 0:51:41] Qb6 [%clk 1:08:31]} 11. Qe1 {[%emt 0:15:58] bxc4 [%clk 1:01:49] Rxc4 [%clk 0:45:25]} fxe4 {[%emt 0:14:34]} 12. dxe4 {[%emt 0:02:01]} a5 {[%emt 0:00:05]} 13. Bd3 {[%emt 0:32:39] Ba6 [%clk 0:49:58]} e5 {[%emt 0:45:09] Bxc4 [%clk 0:50:04] bxc4 [%clk 0:10:18] Nb4 [%clk 0:41:35] Bxb4 [%clk 0:10:25] axb4 [%clk 0:42:01] Qe4 [%clk 0:10:28] g6 [%clk 0:42:19] Nxd4 [%clk 0:10:10] Rf7 [%clk 0:40:01]} 14. g3 {[%emt 0:10:47] Qb7 [%clk 0:38:48] h4 [%clk 0:03:17] Qa8 [%clk 0:36:56] Qxa8 [%clk 0:02:11]} Ra8 {[%emt 0:00:00] Bb1 [%clk 0:02:33] Rff8 [%clk 0:36:31] Nb3 [%clk 0:01:33] Rfc8 [%clk 0:35:46] Rc1 [%clk 0:01:56] h6 [%clk 0:35:52]} 15. Kg2 {[%emt 0:02:13]} g5 {[%emt 0:00:00] fxg5 [%clk 0:00:44] hxg5 [%clk 0:36:37] h5 [%clk 0:01:07] Bf8 [%clk 0:34:41] c5 [%clk 0:00:32] Bg7 [%clk 0:33:31] Rd1 [%clk 0:00:37] Ra7 [%clk 0:33:38]} 16. Kxf3 {[%emt 0:01:15] Bxe5 [%clk 0:33:35]} h6 {[%emt 0:11:41] Kf7 [%clk 0:27:30]} 17. Kg4 {[%emt 0:00:18] Ke7 [%clk 0:27:50] Re1 [%clk 0:30:39] Bc3 [%clk 0:57:36] Rh1 [%clk 0:22:48] Bf6 [%clk 0:49:45] Kh5 [%clk 0:21:13] Rac7 [%clk 0:42:41] Rf1 [%clk 0:15:45] Rf8 [%clk 0:41:59] g4 [%clk 0:11:23] Rcc8 [%clk 0:40:25] h7 [%clk 0:09:58] Bh8 [%clk 0:31:06] Rg1 [%clk 0:08:02] Rf2 [%clk 0:30:42] Kxg5 [%clk 0:04:04] Rcf8 [%clk 0:30:53] c6 [%clk 0:03:37] Bf6+ [%clk 0:24:28] Kg6 [%clk 0:03:38] Rf7 [%clk 0:24:23] Rh1 [%clk 0:03:09] Rg7+ [%clk 0:24:43] Kh5 [%clk 0:03:27] Rg5 [%clk 0:25:06] Kh4 [%clk 0:02:20] Rgf5 [%clk 0:22:13] g5 [%clk 0:02:45] Rxg5 [%clk 0:22:38] c7 [%clk 0:01:02] Rg1 [%clk 0:22:39] Kh3 [%clk 0:01:16] Rxh1 [%clk 0:22:53] Kg3 [%clk 0:01:43] Bh4+ [%clk 0:23:00] Kg4 [%clk 0:02:07] Rf8 [%clk 0:23:23] Be4 [%clk 0:02:29] Rh2 [%clk 0:23:21] Bb7 [%clk 0:02:51] Bf6 [%clk 0:23:30]} 0-1

[Event "4th Batumi Cup 2018"]
[Site "Batumi"]
[Date "2018.07.03"]
[Round "1"]
[White "Garayev, Kanan"]
[Black "Sanikidze, Tornike"]
[Result "1/2-1/2"]
[ECO "D38"]
[WhiteElo "2300"]
[BlackElo "2512"]
[Annotator "ChessBase"]
[PlyCount "77"]
[EventDate "2018.07.03"]
[EventType "swiss"]
[EventCountry "GEO"]
[SourceTitle "playchess.com"]
[Source "ChessBase"]
[SourceQuality "1"]
[TimeControl "40/5400+30:1800+30"]

1. d4 {[%emt 0:00:00]} d5 {[%emt 0:00:04]} 2. c4 {[%emt 0:00:00]} e6 {[%emt 0:00:05]} 3. Nc3 {[%emt 0:00:00]} Bb4 {[%emt 0:00:06]} 4. Nf3 {[%emt 0:00:21]} Nf6 {[%emt 0:00:07]} 5. cxd5 {[%emt 0:04:04]} exd5 {[%emt 0:02:56]} 6. Bg5 {[%emt 0:00:22]} h6 {[%emt 0:00:06]} 7. Bxf6 {[%emt 0:05:10]} Qxf6 {[%emt 0:00:07]} 8. e3 {[%emt 0:11:54]} c5 {[%emt 0:05:04]} 9. Be2 {[%emt 0:06:08]} Nc6 {[%emt 0:01:35]} 10. O-O {[%emt 0:00:36]} Be6 {[%emt 0:00:44]} 11. Rc1 {[%emt 0:04:14]} c4 {[%emt 0:04:51]} 12. e4 {[%emt 0:13:05]} Bxc3 {[%emt 0:00:43]} 13. bxc3 {[%emt 0:03:03]} b5 {[%emt 0:04:24]} 14. Nd2 {[%emt 0:05:06]} O-O {[%emt 0:01:01]} 15. f4 {[%emt 0:03:25]} dxe4 {[%emt 0:04:10]} 16. Nxe4 {[%emt 0:00:13]} Qd8 {[%emt 0:02:33]} 17. Nc5 {[%emt 0:04:21]} Bd5 {[%emt 0:01:03]} 18. Qd2 {[%emt 0:01:00]} Re8 {[%emt 0:01:53]} 19. Rce1 {[%emt 0:01:14]} b4 {[%emt 0:06:28]} 20. cxb4 {[%emt 0:03:00]} Qf6 {[%emt 0:02:17]} 21. Bg4 {[%emt 0:07:57]} Rxe1 {[%emt 0:06:26]} 22. Rxe1 {[%emt 0:00:11]} Nxd4 {[%emt 0:00:06]} 23. Re5 {[%emt 0:09:10]} Be6 {[%emt 0:01:16]} 24. Qxd4 {[%emt 0:00:48]} Rd8 {[%emt 0:00:35]} 25. Qe4 {[%emt 0:01:31]} Bxg4 {[%emt 0:00:35]} 26. Re8+ {[%emt 0:00:21]} Rxe8 {[%emt 0:00:04]} 27. Qxe8+ {[%emt 0:00:02]} Kh7 {[%emt 0:00:06]} 28. Qe4+ {[%emt 0:00:09]} Bf5 {[%emt 0:01:44]} 29. Qxc4 {[%emt 0:00:16]} Qa1+ {[%emt 0:00:18]} 30. Kf2 {[%emt 0:00:57]} Qb2+ {[%emt 0:00:10]} 31. Kg1 {[%emt 0:02:45]} h5 {[%emt 0:06:20]} 32. h3 {[%emt 0:01:42]} h4 {[%emt 0:01:36]} 33. Qxf7 {[%emt 0:01:53]} Qc1+ {[%emt 0:01:32]} 34. Kh2 {[%emt 0:00:04]} Qxf4+ {[%emt 0:00:06]} 35. Kh1 {[%emt 0:00:03]} Qf1+ {[%emt 0:04:16]} 36. Kh2 {[%emt 0:00:05]} Qf4+ {[%emt 0:00:04]} 37. Kh1 {[%emt 0:00:02]} Qc1+ {[%emt 0:00:06]} 38. Kh2 {[%emt 0:00:02]} Qf4+ {[%emt 0:00:04]} 39. Kh1 {[%emt 0:00:02]} 1/2-1/2

[Event "4th Batumi Cup 2018"]
[Site "Batumi"]
[Date "2018.07.03"]
[Round "1"]
[White "Suleymanli, Aydin"]
[Black "Quparadze, Giga"]
[Result "1/2-1/2"]
[ECO "E13"]
[WhiteElo "2266"]
[BlackElo "2503"]
[Annotator "ChessBase"]
[PlyCount "121"]
[EventDate "2018.07.03"]
[EventType "swiss"]
[EventCountry "GEO"]
[SourceTitle "playchess.com"]
[Source "ChessBase"]
[SourceQuality "1"]
[TimeControl "40/5400+30:1800+30"]

1. d4 {[%emt 0:00:00]} Nf6 {[%emt 0:00:00]} 2. c4 {[%emt 0:00:00]} e6 {[%emt 0:00:00]} 3. Nf3 {[%emt 0:00:00]} b6 {[%emt 0:00:00]} 4. Nc3 {[%emt 0:02:56]} Bb4 {[%emt 0:00:48]} 5. Bg5 {[%emt 0:00:04]} Bb7 {[%emt 0:00:08]} 6. Nd2 {[%emt 0:00:03]} h6 {[%emt 0:01:58]} 7. Bh4 {[%emt 0:01:38]} Nc6 {[%emt 0:00:06]} 8. e3 {[%emt 0:00:09]} Ne7 {[%emt 0:00:05]} 9. Bxf6 {[%emt 0:00:10]} gxf6 {[%emt 0:00:04]} 10. Qb3 {[%emt 0:00:28]} c5 {[%emt 0:01:18]} 11. a3 {[%emt 0:01:31]} Bxc3 {[%emt 0:00:24]} 12. Qxc3 {[%emt 0:00:04]} cxd4 {[%emt 0:00:34]} 13. Qxd4 {[%emt 0:01:34]} Nc6 {[%emt 0:09:52]} 14. Qc3 {[%emt 0:05:57]} Qe7 {[%emt 0:00:13]} 15. Rd1 {[%emt 0:09:51]} O-O-O {[%emt 0:00:07]} 16. Bd3 {[%emt 0:11:46]} f5 {[%emt 0:01:05]} 17. Be2 {[%emt 0:04:23]} Rhg8 {[%emt 0:01:54]} 18. Bf3 {[%emt 0:01:02]} d6 {[%emt 0:00:06]} 19. O-O {[%emt 0:10:21]} Rg6 {[%emt 0:00:16]} 20. b4 {[%emt 0:09:56]} Rdg8 {[%emt 0:04:53]} 21. g3 {[%emt 0:02:17]} Ne5 {[%emt 0:00:42]} 22. Bxb7+ {[%emt 0:02:27]} Kxb7 {[%emt 0:00:19]} 23. c5 {[%emt 0:04:56]} Rc8 {[%emt 0:00:07]} 24. f4 {[%emt 0:08:33]} Ng4 {[%emt 0:00:43]} 25. cxd6 {[%emt 0:05:37]} Rxc3 {[%emt 0:00:27]} 26. dxe7 {[%emt 0:00:31]} Rg8 {[%emt 0:00:04]} 27. Nb1 {[%emt 0:03:11]} Rcc8 {[%emt 0:00:54]} 28. Rd7+ {[%emt 0:02:05]} Kb8 {[%emt 0:00:08]} 29. Nd2 {[%emt 0:03:18]} Rge8 {[%emt 0:05:34]} 30. e4 {[%emt 0:04:03]} Nf6 {[%emt 0:00:07]} 31. Rd4 {[%emt 0:00:13]} Rxe7 {[%emt 0:00:14]} 32. Re1 {[%emt 0:03:47]} fxe4 {[%emt 0:02:09]} 33. Nxe4 {[%emt 0:00:02]} Nxe4 {[%emt 0:00:17]} 34. Rdxe4 {[%emt 0:00:05]} Rd7 {[%emt 0:00:09]} 35. Kf2 {[%emt 0:03:13]} Kb7 {[%emt 0:00:41]} 36. R1e2 {[%emt 0:00:32]} Rc1 {[%emt 0:01:29]} 37. a4 {[%emt 0:01:08]} a6 {[%emt 0:00:51]} 38. a5 {[%emt 0:00:36]} Rd5 {[%emt 0:01:03]} 39. axb6 {[%emt 0:00:08]} Kxb6 {[%emt 0:00:06]} 40. Re5 {[%emt 0:00:00]} Rxe5 {[%emt 0:00:00]} 41. Rxe5 {[%emt 0:00:54]} Rc2+ {[%emt 0:00:46]} 42. Kf3 {[%emt 0:09:09]} Rxh2 {[%emt 0:01:29]} 43. f5 {[%emt 0:00:11]} exf5 {[%emt 0:02:34]} 44. Rxf5 {[%emt 0:00:12]} Rh1 {[%emt 0:00:04]} 45. Kg2 {[%emt 0:08:00]} Rb1 {[%emt 0:00:45]} 46. Rxf7 {[%emt 0:00:07]} Rxb4 {[%emt 0:00:05]} 47. Rf6+ {[%emt 0:01:03]} Kb5 {[%emt 0:00:06]} 48. Rxh6 {[%emt 0:00:02]} a5 {[%emt 0:00:05]} 49. Rh8 {[%emt 0:01:35]} a4 {[%emt 0:00:07]} 50. Ra8 {[%emt 0:01:15]} Rb3 {[%emt 0:00:47]} 51. Kf2 {[%emt 0:09:09]} Kb4 {[%emt 0:00:35]} 52. Ke2 {[%emt 0:05:06]} Rxg3 {[%emt 0:00:07]} 53. Kd2 {[%emt 0:00:05]} Kb3 {[%emt 0:00:51]} 54. Rb8+ {[%emt 0:01:00]} Ka2 {[%emt 0:00:06]} 55. Kc2 {[%emt 0:00:31]} a3 {[%emt 0:00:05]} 56. Rc8 {[%emt 0:00:34]} Rg2+ {[%emt 0:00:09]} 57. Kc1 {[%emt 0:00:08]} Kb3 {[%emt 0:00:44]} 58. Rb8+ {[%emt 0:00:06]} Kc4 {[%emt 0:00:11]} 59. Kb1 {[%emt 0:00:36]} Kc3 {[%emt 0:00:18]} 60. Rc8+ {[%emt 0:00:06]} Kb3 {[%emt 0:00:05]} 61. Rb8+ {[%emt 0:00:03]} 1/2-1/2